[Event "Early-Titled-Tuesday-Blitz-September-12-2023"]
[Site "Chess.com"]
[Date "2023.09.12"]
[Round "10"]
[White "seopie"]
[Black "Roman_Ovetchkin"]
[Result "1/2-1/2"]
[WhiteElo "2819"]
[BlackElo "2662"]
[TimeControl "180+1"]
[EndTime "9:57:55 PDT"]
[Termination "Game drawn - timeout vs insufficient material"]

1. d4 {[%clk 0:03:00.9]} 1... Nf6 {[%clk 0:02:52.4]} 2. c4 {[%clk 0:03:01]} 2...
c5 {[%clk 0:02:51.7]} 3. d5 {[%clk 0:03:01.1]} 3... b5 {[%clk 0:02:51.9]} 4.
cxb5 {[%clk 0:03:01.3]} 4... a6 {[%clk 0:02:51.6]} 5. bxa6 {[%clk 0:03:00.4]}
5... g6 {[%clk 0:02:52]} 6. Nc3 {[%clk 0:03:00]} 6... Bg7 {[%clk 0:02:52.4]} 7.
a7 {[%clk 0:02:57.4]} 7... Rxa7 {[%clk 0:02:51.4]} 8. e4 {[%clk 0:02:58.3]} 8...
O-O {[%clk 0:02:50.6]} 9. Nf3 {[%clk 0:02:52]} 9... Ba6 {[%clk 0:02:50.5]} 10.
Bxa6 {[%clk 0:02:51.3]} 10... Rxa6 {[%clk 0:02:47.2]} 11. O-O {[%clk 0:02:52.2]}
11... d6 {[%clk 0:02:46.1]} 12. Re1 {[%clk 0:02:46.7]} 12... Nfd7 {[%clk
0:02:44]} 13. Bf4 {[%clk 0:02:44.5]} 13... Qb6 {[%clk 0:02:41.9]} 14. Qd2 {[%clk
0:02:42.6]} 14... Rc8 {[%clk 0:02:20.7]} 15. e5 {[%clk 0:02:41]} 15... c4 {[%clk
0:02:05.9]} 16. e6 {[%clk 0:02:26.9]} 16... fxe6 {[%clk 0:02:05.8]} 17. dxe6
{[%clk 0:02:01.3]} 17... Nc5 {[%clk 0:02:02.6]} 18. Nd5 {[%clk 0:02:01.3]} 18...
Qd8 {[%clk 0:02:02.6]} 19. Bg5 {[%clk 0:01:54.8]} 19... Nc6 {[%clk 0:02:01.9]}
20. Rac1 {[%clk 0:01:41]} 20... Nd3 {[%clk 0:01:43.8]} 21. Rxc4 {[%clk
0:01:40.7]} 21... Nxe1 {[%clk 0:01:43.6]} 22. Qxe1 {[%clk 0:01:41.3]} 22... Bf8
{[%clk 0:01:38.6]} 23. a3 {[%clk 0:01:29.3]} 23... Ne5 {[%clk 0:01:31.2]} 24.
Nxe5 {[%clk 0:01:21.6]} 24... dxe5 {[%clk 0:01:30.1]} 25. Rxc8 {[%clk
0:01:20.8]} 25... Qxc8 {[%clk 0:01:30.1]} 26. Bxe7 {[%clk 0:01:15.9]} 26... Rxe6
{[%clk 0:01:25.1]} 27. Bxf8 {[%clk 0:01:15]} 27... Qxf8 {[%clk 0:01:24.4]} 28.
h3 {[%clk 0:01:12.9]} 28... Qc5 {[%clk 0:01:24.2]} 29. Ne3 {[%clk 0:01:08.9]}
29... Qd4 {[%clk 0:01:22.1]} 30. Qe2 {[%clk 0:01:09]} 30... Rc6 {[%clk
0:01:19.9]} 31. Kh2 {[%clk 0:01:01.1]} 31... Rc1 {[%clk 0:01:13.3]} 32. Ng4
{[%clk 0:00:56.6]} 32... e4 {[%clk 0:01:06.1]} 33. Qa6 {[%clk 0:00:52.9]} 33...
Rc7 {[%clk 0:00:56.4]} 34. Qe6+ {[%clk 0:00:49.6]} 34... Kg7 {[%clk 0:00:55]}
35. b4 {[%clk 0:00:42.2]} 35... Rf7 {[%clk 0:00:44.4]} 36. b5 {[%clk 0:00:35.9]}
36... h5 {[%clk 0:00:37.8]} 37. Ne5 {[%clk 0:00:30.1]} 37... Rxf2 {[%clk
0:00:38.3]} 38. Qxg6+ {[%clk 0:00:26.9]} 38... Kf8 {[%clk 0:00:38.6]} 39. Qxh5
{[%clk 0:00:20.7]} 39... Qe3 {[%clk 0:00:20.6]} 40. Qg4 {[%clk 0:00:11.5]} 40...
Qe2 {[%clk 0:00:13.9]} 41. Qxe2 {[%clk 0:00:08.5]} 41... Rxe2 {[%clk 0:00:13.8]}
42. a4 {[%clk 0:00:08.5]} 42... Rb2 {[%clk 0:00:13.5]} 43. Kg3 {[%clk
0:00:07.3]} 43... Ke7 {[%clk 0:00:13.5]} 44. Ng4 {[%clk 0:00:04.9]} 44... Ke6
{[%clk 0:00:13.2]} 45. Kf4 {[%clk 0:00:04.2]} 45... Rb4 {[%clk 0:00:13.4]} 46.
Ne3 {[%clk 0:00:03.5]} 46... Rxa4 {[%clk 0:00:13.5]} 47. g4 {[%clk 0:00:03.3]}
47... Rb4 {[%clk 0:00:13.7]} 48. h4 {[%clk 0:00:03.7]} 48... Rxb5 {[%clk
0:00:13.4]} 49. Kxe4 {[%clk 0:00:04.6]} 49... Rb4+ {[%clk 0:00:13.9]} 50. Kf3
{[%clk 0:00:05.1]} 50... Ke5 {[%clk 0:00:14.2]} 51. h5 {[%clk 0:00:04.7]} 51...
Rb3 {[%clk 0:00:14.1]} 52. h6 {[%clk 0:00:03.9]} 52... Kf6 {[%clk 0:00:14.3]}
53. Kf4 {[%clk 0:00:04.2]} 53... Rb4+ {[%clk 0:00:14.3]} 54. Kf3 {[%clk
0:00:04.4]} 54... Kg5 {[%clk 0:00:13.7]} 55. Nf5 {[%clk 0:00:04.5]} 55... Rb3+
{[%clk 0:00:14]} 56. Ke4 {[%clk 0:00:04.5]} 56... Kxg4 {[%clk 0:00:13.3]} 57. h7
{[%clk 0:00:03.9]} 57... Rh3 {[%clk 0:00:13.3]} 58. Ne3+ {[%clk 0:00:02.1]}
58... Kg5 {[%clk 0:00:13.4]} 59. Nd5 {[%clk 0:00:02.4]} 59... Rxh7 {[%clk
0:00:13.3]} 60. Ke5 {[%clk 0:00:03.3]} 60... Rh1 {[%clk 0:00:12.9]} 61. Nc3
{[%clk 0:00:03.5]} 61... Re1+ {[%clk 0:00:10.6]} 62. Ne4+ {[%clk 0:00:04.4]}
62... Kg4 {[%clk 0:00:10.8]} 63. Kd5 {[%clk 0:00:04.8]} 63... Kf4 {[%clk
0:00:10.4]} 64. Nc5 {[%clk 0:00:05.7]} 64... Re5+ {[%clk 0:00:09.3]} 65. Kd4
{[%clk 0:00:05.9]} 65... Re8 {[%clk 0:00:08.8]} 66. Nd3+ {[%clk 0:00:06.3]}
66... Kf5 {[%clk 0:00:08.8]} 67. Nc5 {[%clk 0:00:06.8]} 67... Rd8+ {[%clk
0:00:08.5]} 68. Kc4 {[%clk 0:00:07.3]} 68... Ke5 {[%clk 0:00:06]} 69. Nd3+
{[%clk 0:00:07.8]} 69... Ke4 {[%clk 0:00:06.4]} 70. Nc5+ {[%clk 0:00:08.3]}
70... Ke3 {[%clk 0:00:06.9]} 71. Ne6 {[%clk 0:00:08.6]} 71... Rd6 {[%clk
0:00:05.7]} 72. Nc5 {[%clk 0:00:09]} 72... Rd4+ {[%clk 0:00:05.9]} 73. Kb5
{[%clk 0:00:09.2]} 73... Rh4 {[%clk 0:00:04.2]} 74. Nb3 {[%clk 0:00:09.3]} 74...
Kd3 {[%clk 0:00:03.6]} 75. Nc5+ {[%clk 0:00:09.5]} 75... Kd4 {[%clk 0:00:03.9]}
76. Nb3+ {[%clk 0:00:09.5]} 76... Kd5 {[%clk 0:00:04.2]} 77. Nc5 {[%clk
0:00:07.3]} 77... Rh1 {[%clk 0:00:04.1]} 78. Nb3 {[%clk 0:00:05]} 78... Rh4
{[%clk 0:00:02.2]} 79. Nc5 {[%clk 0:00:04.2]} 79... Rg4 {[%clk 0:00:01.5]} 80.
Nb3 {[%clk 0:00:04]} 80... Rc4 {[%clk 0:00:01.6]} 81. Na5 {[%clk 0:00:03.7]}
1/2-1/2

[Event "Early-Titled-Tuesday-Blitz-September-12-2023"]
[Site "Chess.com"]
[Date "2023.09.12"]
[Round "10"]
[White "Boundless_Strike"]
[Black "Jenia84"]
[Result "1-0"]
[WhiteElo "2603"]
[BlackElo "2360"]
[TimeControl "180+1"]
[EndTime "9:58:02 PDT"]
[Termination "Boundless_Strike won on time"]

1. d4 {[%clk 0:03:00.9]} 1... Nf6 {[%clk 0:02:56.9]} 2. Nc3 {[%clk 0:03:00.8]}
2... d5 {[%clk 0:02:54.2]} 3. e4 {[%clk 0:03:01]} 3... Nxe4 {[%clk 0:02:53.3]}
4. Nxe4 {[%clk 0:03:00]} 4... dxe4 {[%clk 0:02:53.5]} 5. Be3 {[%clk 0:03:00.2]}
5... e5 {[%clk 0:02:52.5]} 6. dxe5 {[%clk 0:02:56.2]} 6... Qxd1+ {[%clk
0:02:50.5]} 7. Rxd1 {[%clk 0:02:57.1]} 7... Nc6 {[%clk 0:02:50.1]} 8. f4 {[%clk
0:02:56.5]} 8... exf3 {[%clk 0:02:49.3]} 9. Nxf3 {[%clk 0:02:56.7]} 9... Bg4
{[%clk 0:02:47.1]} 10. Bb5 {[%clk 0:02:57.3]} 10... Bd7 {[%clk 0:02:32.8]} 11.
O-O {[%clk 0:02:48.8]} 11... Be7 {[%clk 0:02:31]} 12. Bg5 {[%clk 0:02:19.9]}
12... a6 {[%clk 0:02:26.3]} 13. Bc4 {[%clk 0:02:07.2]} 13... Bg4 {[%clk
0:02:07.4]} 14. Bxe7 {[%clk 0:01:07.3]} 14... Kxe7 {[%clk 0:02:05.4]} 15. Bd5
{[%clk 0:01:03.2]} 15... Bxf3 {[%clk 0:01:56.6]} 16. Rxf3 {[%clk 0:00:42.5]}
16... Nxe5 {[%clk 0:01:56.3]} 17. Re3 {[%clk 0:00:42.4]} 17... f6 {[%clk
0:01:56]} 18. Bxb7 {[%clk 0:00:42.5]} 18... Rab8 {[%clk 0:01:55.6]} 19. Bd5
{[%clk 0:00:35.1]} 19... Rxb2 {[%clk 0:01:52.8]} 20. Bb3 {[%clk 0:00:30.6]}
20... a5 {[%clk 0:01:48.4]} 21. Rd5 {[%clk 0:00:25.9]} 21... a4 {[%clk
0:01:42.4]} 22. Bxa4 {[%clk 0:00:24.3]} 22... Rd8 {[%clk 0:01:15.3]} 23. Bb3
{[%clk 0:00:13.8]} 23... Rxd5 {[%clk 0:01:13.5]} 24. Bxd5 {[%clk 0:00:14.7]}
24... Rxc2 {[%clk 0:01:13.1]} 25. Bb3 {[%clk 0:00:14.2]} 25... Rb2 {[%clk
0:01:08.9]} 26. h3 {[%clk 0:00:14.2]} 26... c5 {[%clk 0:01:08.6]} 27. Re1 {[%clk
0:00:14.9]} 27... Kd6 {[%clk 0:01:06.2]} 28. Rd1+ {[%clk 0:00:15.4]} 28... Kc7
{[%clk 0:01:05.9]} 29. Rc1 {[%clk 0:00:15.4]} 29... Kb6 {[%clk 0:01:04.4]} 30.
Kh2 {[%clk 0:00:16]} 30... Nf3+ {[%clk 0:01:00.9]} 31. Kg3 {[%clk 0:00:16]}
31... Nd4 {[%clk 0:00:59.7]} 32. Bg8 {[%clk 0:00:16.7]} 32... h6 {[%clk
0:00:57.7]} 33. Re1 {[%clk 0:00:17.3]} 33... Nc6 {[%clk 0:00:54]} 34. Re8 {[%clk
0:00:16.7]} 34... Kc7 {[%clk 0:00:43]} 35. Rf8 {[%clk 0:00:16.7]} 35... Ne5
{[%clk 0:00:42.2]} 36. Ra8 {[%clk 0:00:15.7]} 36... c4 {[%clk 0:00:39.7]} 37.
Ra7+ {[%clk 0:00:13.4]} 37... Kd6 {[%clk 0:00:39.8]} 38. Ra8 {[%clk 0:00:13.5]}
38... Kc5 {[%clk 0:00:35.2]} 39. Rc8+ {[%clk 0:00:13.7]} 39... Kd4 {[%clk
0:00:35.4]} 40. a4 {[%clk 0:00:13.6]} 40... c3 {[%clk 0:00:34.1]} 41. a5 {[%clk
0:00:13.5]} 41... c2 {[%clk 0:00:33.7]} 42. a6 {[%clk 0:00:14.1]} 42... Rb6
{[%clk 0:00:26.3]} 43. a7 {[%clk 0:00:14.1]} 43... Ra6 {[%clk 0:00:26]} 44. Rxc2
{[%clk 0:00:14.4]} 44... Rxa7 {[%clk 0:00:26.3]} 45. Rc8 {[%clk 0:00:15.1]}
45... Ra3+ {[%clk 0:00:24.3]} 46. Kh2 {[%clk 0:00:15.1]} 46... Rc3 {[%clk
0:00:22]} 47. Rd8+ {[%clk 0:00:14.9]} 47... Ke3 {[%clk 0:00:21]} 48. Ra8 {[%clk
0:00:15.3]} 48... Rc2 {[%clk 0:00:20.6]} 49. Ra7 {[%clk 0:00:15.4]} 49... g5
{[%clk 0:00:20.2]} 50. Ra6 {[%clk 0:00:15.8]} 50... f5 {[%clk 0:00:19.9]} 51.
Ra3+ {[%clk 0:00:16.2]} 51... Kd4 {[%clk 0:00:18.3]} 52. Be6 {[%clk 0:00:16]}
52... f4 {[%clk 0:00:18.3]} 53. Ra4+ {[%clk 0:00:15.5]} 53... Ke3 {[%clk
0:00:17.5]} 54. Ra3+ {[%clk 0:00:16.1]} 54... Nd3 {[%clk 0:00:17.5]} 55. Bf5
{[%clk 0:00:16.1]} 55... Rd2 {[%clk 0:00:17.8]} 56. h4 {[%clk 0:00:15.9]} 56...
Ke2 {[%clk 0:00:14.5]} 57. hxg5 {[%clk 0:00:15.5]} 57... hxg5 {[%clk 0:00:14.3]}
58. Bg4+ {[%clk 0:00:16]} 58... Ke1 {[%clk 0:00:14.1]} 59. Ra1+ {[%clk
0:00:14.3]} 59... Kf2 {[%clk 0:00:14.3]} 60. Kh3 {[%clk 0:00:14.1]} 60... Ne5
{[%clk 0:00:13.6]} 61. Bh5 {[%clk 0:00:11.2]} 61... Rd3+ {[%clk 0:00:13.9]} 62.
Kh2 {[%clk 0:00:11.7]} 62... g4 {[%clk 0:00:14.4]} 63. Ra2+ {[%clk 0:00:08.6]}
63... Ke1 {[%clk 0:00:14.3]} 64. Ra1+ {[%clk 0:00:09]} 64... Rd1 {[%clk
0:00:14.6]} 65. Ra5 {[%clk 0:00:09.3]} 65... g3+ {[%clk 0:00:14.9]} 66. Kh3
{[%clk 0:00:09.7]} 66... Nd3 {[%clk 0:00:15.1]} 67. Bxd1 {[%clk 0:00:09.2]}
67... Nf2+ {[%clk 0:00:13.7]} 68. Kh4 {[%clk 0:00:09.2]} 68... Kxd1 {[%clk
0:00:14]} 69. Ra4 {[%clk 0:00:07.6]} 69... Nd3 {[%clk 0:00:12.4]} 70. Kg4 {[%clk
0:00:07]} 70... Ke2 {[%clk 0:00:13]} 71. Ra3 {[%clk 0:00:05.8]} 71... Kd2 {[%clk
0:00:11]} 72. Kf3 {[%clk 0:00:03.9]} 72... Kc2 {[%clk 0:00:08.9]} 73. Ra1 {[%clk
0:00:03.4]} 73... Kd2 {[%clk 0:00:08.6]} 74. Ra2+ {[%clk 0:00:02.8]} 74... Ke1
{[%clk 0:00:08.5]} 75. Ra4 {[%clk 0:00:03]} 75... Kf1 {[%clk 0:00:06.3]} 76. Rd4
{[%clk 0:00:02.4]} 76... Ne1+ {[%clk 0:00:06.3]} 77. Kxf4 {[%clk 0:00:03.1]}
77... Kxg2 {[%clk 0:00:05.1]} 78. Re4 {[%clk 0:00:02.2]} 78... Nd3+ {[%clk
0:00:03.9]} 79. Ke3 {[%clk 0:00:02.9]} 79... Nf2 {[%clk 0:00:04.1]} 80. Re8
{[%clk 0:00:02.6]} 80... Kg1 {[%clk 0:00:04.5]} 81. Rg8 {[%clk 0:00:02.9]} 81...
g2 {[%clk 0:00:04.7]} 82. Kf3 {[%clk 0:00:03.5]} 82... Kf1 {[%clk 0:00:03.3]}
83. Rxg2 {[%clk 0:00:04.1]} 83... Nd3 {[%clk 0:00:04.1]} 84. Rd2 {[%clk
0:00:04.6]} 84... Ne1+ {[%clk 0:00:03.4]} 85. Kg3 {[%clk 0:00:05]} 1-0

[Event "Early-Titled-Tuesday-Blitz-September-12-2023"]
[Site "Chess.com"]
[Date "2023.09.12"]
[Round "10"]
[White "ShahMatKanal"]
[Black "Francisco_Ferrari"]
[Result "1-0"]
[WhiteElo "2507"]
[BlackElo "2208"]
[TimeControl "180+1"]
[EndTime "9:58:03 PDT"]
[Termination "ShahMatKanal won by checkmate"]

1. e4 {[%clk 0:03:00.9]} 1... c5 {[%clk 0:02:57]} 2. d4 {[%clk 0:02:59.3]} 2...
cxd4 {[%clk 0:02:57]} 3. c3 {[%clk 0:02:59.9]} 3... Nf6 {[%clk 0:02:55.8]} 4. e5
{[%clk 0:02:59.7]} 4... Nd5 {[%clk 0:02:56]} 5. Bc4 {[%clk 0:03:00.1]} 5... Nb6
{[%clk 0:02:47.7]} 6. Bb3 {[%clk 0:03:00]} 6... e6 {[%clk 0:02:43.3]} 7. cxd4
{[%clk 0:02:58.7]} 7... d6 {[%clk 0:02:43.8]} 8. exd6 {[%clk 0:02:58.4]} 8...
Bxd6 {[%clk 0:02:42.3]} 9. Nf3 {[%clk 0:02:59.3]} 9... O-O {[%clk 0:02:42]} 10.
O-O {[%clk 0:03:00.2]} 10... Nc6 {[%clk 0:02:39.9]} 11. Nc3 {[%clk 0:03:00]}
11... Bd7 {[%clk 0:02:32]} 12. a3 {[%clk 0:02:54.2]} 12... Na5 {[%clk
0:02:31.3]} 13. Ba2 {[%clk 0:02:50.3]} 13... Bc6 {[%clk 0:02:27]} 14. Qe2 {[%clk
0:02:45.2]} 14... Rc8 {[%clk 0:02:00.3]} 15. Ne5 {[%clk 0:02:33]} 15... Nd5
{[%clk 0:01:36.6]} 16. Nxc6 {[%clk 0:02:30.2]} 16... bxc6 {[%clk 0:01:33.7]} 17.
Ne4 {[%clk 0:02:22.2]} 17... Be7 {[%clk 0:01:29.6]} 18. b4 {[%clk 0:02:21.8]}
18... Nb7 {[%clk 0:01:28.2]} 19. Bb2 {[%clk 0:02:13.7]} 19... a5 {[%clk
0:01:23.8]} 20. Nc5 {[%clk 0:01:56.4]} 20... Nd6 {[%clk 0:01:11.4]} 21. Qd2
{[%clk 0:01:45.1]} 21... axb4 {[%clk 0:01:08]} 22. axb4 {[%clk 0:01:46]} 22...
Nf5 {[%clk 0:01:05.8]} 23. Bb1 {[%clk 0:01:39.9]} 23... Bg5 {[%clk 0:00:53.6]}
24. f4 {[%clk 0:01:36.2]} 24... Bf6 {[%clk 0:00:43.4]} 25. Rf3 {[%clk
0:01:29.5]} 25... Rb8 {[%clk 0:00:38.7]} 26. g4 {[%clk 0:01:24.4]} 26... Nd6
{[%clk 0:00:34]} 27. g5 {[%clk 0:01:21.7]} 27... Be7 {[%clk 0:00:33.2]} 28. Ra4
{[%clk 0:01:12.5]} 28... Nc4 {[%clk 0:00:30.4]} 29. Qd3 {[%clk 0:01:12.6]} 29...
g6 {[%clk 0:00:26.4]} 30. Qxc4 {[%clk 0:01:12.4]} 30... Bxg5 {[%clk 0:00:24.5]}
31. fxg5 {[%clk 0:01:01.5]} 31... Qxg5+ {[%clk 0:00:25.4]} 32. Rg3 {[%clk
0:01:01.7]} 32... Qd2 {[%clk 0:00:26]} 33. Bc1 {[%clk 0:00:58.4]} 33... Qe1+
{[%clk 0:00:24.3]} 34. Qf1 {[%clk 0:00:58.9]} 34... Qxf1+ {[%clk 0:00:16.3]} 35.
Kxf1 {[%clk 0:00:59.8]} 35... Nxb4 {[%clk 0:00:16]} 36. Bf4 {[%clk 0:00:58.6]}
36... Rb5 {[%clk 0:00:15.7]} 37. Rb3 {[%clk 0:00:53.7]} 37... Nd5 {[%clk
0:00:13.4]} 38. Bh6 {[%clk 0:00:45.9]} 38... Rxb3 {[%clk 0:00:12.8]} 39. Nxb3
{[%clk 0:00:46.3]} 39... Rb8 {[%clk 0:00:13.2]} 40. Bc2 {[%clk 0:00:45.2]} 40...
f6 {[%clk 0:00:12.4]} 41. Bd2 {[%clk 0:00:42.6]} 41... g5 {[%clk 0:00:10.3]} 42.
Rc4 {[%clk 0:00:41.9]} 42... Rc8 {[%clk 0:00:08.8]} 43. Na5 {[%clk 0:00:42.1]}
43... Kf7 {[%clk 0:00:08.5]} 44. Nxc6 {[%clk 0:00:40.9]} 44... Ra8 {[%clk
0:00:08.7]} 45. Na5 {[%clk 0:00:39.9]} 45... Rb8 {[%clk 0:00:08.3]} 46. Bc1
{[%clk 0:00:36.5]} 46... Ra8 {[%clk 0:00:08.5]} 47. Nb7 {[%clk 0:00:35]} 47...
Ra1 {[%clk 0:00:08.2]} 48. Kf2 {[%clk 0:00:30.6]} 48... Ke7 {[%clk 0:00:05.5]}
49. Bd2 {[%clk 0:00:27.2]} 49... Ra2 {[%clk 0:00:05.2]} 50. Nc5 {[%clk
0:00:23.8]} 50... h5 {[%clk 0:00:05.6]} 51. h3 {[%clk 0:00:23.4]} 51... g4
{[%clk 0:00:05.7]} 52. hxg4 {[%clk 0:00:24.3]} 52... hxg4 {[%clk 0:00:06.2]} 53.
Kg3 {[%clk 0:00:24.2]} 53... f5 {[%clk 0:00:07.1]} 54. Bg5+ {[%clk 0:00:23.3]}
54... Kf7 {[%clk 0:00:07.2]} 55. Nd3 {[%clk 0:00:20.5]} 55... Kg6 {[%clk
0:00:06.3]} 56. Bf4 {[%clk 0:00:18.3]} 56... Kf7 {[%clk 0:00:05.1]} 57. Be5
{[%clk 0:00:16.9]} 57... Ke7 {[%clk 0:00:05.4]} 58. Nf4 {[%clk 0:00:16.2]} 58...
Ne3 {[%clk 0:00:06]} 59. Rc7+ {[%clk 0:00:15.5]} 59... Kd8 {[%clk 0:00:06.8]}
60. Nxe6+ {[%clk 0:00:13.5]} 60... Ke8 {[%clk 0:00:07.5]} 61. Bd3 {[%clk
0:00:10.8]} 61... Rg2+ {[%clk 0:00:07.5]} 62. Kf4 {[%clk 0:00:10.4]} 62... Nd5+
{[%clk 0:00:08]} 63. Kg5 {[%clk 0:00:10.5]} 63... Nxc7 {[%clk 0:00:08.4]} 64.
Bxc7 {[%clk 0:00:09]} 64... Kd7 {[%clk 0:00:08.9]} 65. d5 {[%clk 0:00:08.5]}
65... g3 {[%clk 0:00:08.6]} 66. Bxf5 {[%clk 0:00:07.7]} 66... Rf2 {[%clk
0:00:08.7]} 67. Bxg3 {[%clk 0:00:06.6]} 67... Rd2 {[%clk 0:00:08]} 68. Nf4+
{[%clk 0:00:04.7]} 68... Kd8 {[%clk 0:00:08.3]} 69. Kg4 {[%clk 0:00:05.6]} 69...
Rd4 {[%clk 0:00:08.2]} 70. Bh4+ {[%clk 0:00:05.6]} 70... Ke8 {[%clk 0:00:08.1]}
71. Bf6 {[%clk 0:00:06.5]} 71... Rd2 {[%clk 0:00:08.2]} 72. Be5 {[%clk
0:00:06.6]} 72... Ra2 {[%clk 0:00:08.9]} 73. d6 {[%clk 0:00:05.8]} 73... Ra4
{[%clk 0:00:09.6]} 74. d7+ {[%clk 0:00:05.9]} 74... Kd8 {[%clk 0:00:10.3]} 75.
Bf6+ {[%clk 0:00:06]} 75... Kc7 {[%clk 0:00:10.4]} 76. d8=B+ {[%clk 0:00:04]}
76... Kb7 {[%clk 0:00:11.3]} 77. Bde7 {[%clk 0:00:04]} 77... Ra5 {[%clk
0:00:11.1]} 78. Kg5 {[%clk 0:00:04.3]} 78... Rb5 {[%clk 0:00:11.7]} 79. Ne6
{[%clk 0:00:04.8]} 79... Rb3 {[%clk 0:00:12.4]} 80. Kg6 {[%clk 0:00:05.7]} 80...
Kc6 {[%clk 0:00:12.7]} 81. Kf7 {[%clk 0:00:06.1]} 81... Kd5 {[%clk 0:00:13.6]}
82. Nf4+ {[%clk 0:00:06.2]} 82... Kc6 {[%clk 0:00:13.1]} 83. Be6 {[%clk
0:00:05.9]} 83... Rf3 {[%clk 0:00:12.7]} 84. Nd5 {[%clk 0:00:06]} 84... Rf2
{[%clk 0:00:12.3]} 85. Ne3 {[%clk 0:00:05.9]} 85... Rf3 {[%clk 0:00:11.8]} 86.
Nc4 {[%clk 0:00:06.1]} 86... Ra3 {[%clk 0:00:11.5]} 87. Nxa3 {[%clk 0:00:05.8]}
87... Kc7 {[%clk 0:00:11.7]} 88. Nc2 {[%clk 0:00:06]} 88... Kb7 {[%clk
0:00:12.6]} 89. Kg6 {[%clk 0:00:06.2]} 89... Kb8 {[%clk 0:00:13.5]} 90. Kf5
{[%clk 0:00:07.1]} 90... Kc7 {[%clk 0:00:14.4]} 91. Ke5 {[%clk 0:00:07.9]} 91...
Kb7 {[%clk 0:00:14.2]} 92. Kd5 {[%clk 0:00:08.8]} 92... Kb8 {[%clk 0:00:15.1]}
93. Kc5 {[%clk 0:00:09.3]} 93... Ka7 {[%clk 0:00:16]} 94. Be5 {[%clk 0:00:09]}
94... Ka8 {[%clk 0:00:16.2]} 95. Kb5 {[%clk 0:00:08.8]} 95... Kb7 {[%clk
0:00:17.1]} 96. Nb4 {[%clk 0:00:08.7]} 96... Ka8 {[%clk 0:00:17.7]} 97. Bd5+
{[%clk 0:00:08.2]} 97... Ka7 {[%clk 0:00:17.6]} 98. Bc5# {[%clk 0:00:08.5]} 1-0